[Event "Live Chess"]
[Site "Chess.com"]
[Date "2010.12.14"]
[Round "-"]
[White "realproto"]
[Black "hipposcottimus"]
[Result "0-1"]
[CurrentPosition "5k2/p1p3pp/1p2P3/8/2QP1q2/4p3/PP4PP/6K1 w - -"]
[Timezone "UTC"]
[ECO "A00"]
[ECOUrl "https://www.chess.com/openings/Saragossa-Opening-1...e5"]
[UTCDate "2010.12.14"]
[UTCTime "09:41:54"]
[WhiteElo "1595"]
[BlackElo "1649"]
[TimeControl "60"]
[Termination "hipposcottimus won on time"]
[StartTime "09:41:54"]
[EndDate "2010.12.14"]
[EndTime "09:44:02"]
[Link "https://www.chess.com/game/live/77158219"]

1. c3 {[%clk 0:01:00]} 1... e5 {[%clk 0:01:00]} 2. Qb3 {[%clk 0:01:00]} 2... d5 {[%clk 0:00:59.7]} 3. e3 {[%clk 0:00:59.8]} 3... b6 {[%clk 0:00:56.1]} 4. d4 {[%clk 0:00:58.9]} 4... exd4 {[%clk 0:00:52.9]} 5. exd4 {[%clk 0:00:56.6]} 5... Nf6 {[%clk 0:00:44.1]} 6. Be2 {[%clk 0:00:55.9]} 6... Ne4 {[%clk 0:00:42.6]} 7. Nf3 {[%clk 0:00:54.4]} 7... Be6 {[%clk 0:00:37.8]} 8. O-O {[%clk 0:00:53]} 8... Be7 {[%clk 0:00:36.1]} 9. Ne5 {[%clk 0:00:51.8]} 9... O-O {[%clk 0:00:34.5]} 10. Bf4 {[%clk 0:00:49.8]} 10... f6 {[%clk 0:00:33.6]} 11. Ng4 {[%clk 0:00:40.4]} 11... Bxg4 {[%clk 0:00:31.8]} 12. Bxg4 {[%clk 0:00:38.5]} 12... f5 {[%clk 0:00:31.5]} 13. Bf3 {[%clk 0:00:36.1]} 13... Nc6 {[%clk 0:00:30.2]} 14. Be5 {[%clk 0:00:34.8]} 14... Na5 {[%clk 0:00:27.8]} 15. Qc2 {[%clk 0:00:31.4]} 15... Bf6 {[%clk 0:00:26.3]} 16. Bxe4 {[%clk 0:00:29]} 16... fxe4 {[%clk 0:00:25]} 17. f4 {[%clk 0:00:27.9]} 17... Bxe5 {[%clk 0:00:23.3]} 18. fxe5 {[%clk 0:00:25.6]} 18... Rxf1+ {[%clk 0:00:23]} 19. Kxf1 {[%clk 0:00:24.6]} 19... Qf8+ {[%clk 0:00:22.5]} 20. Kg1 {[%clk 0:00:24.2]} 20... Qf4 {[%clk 0:00:20.8]} 21. Nd2 {[%clk 0:00:22.5]} 21... Rf8 {[%clk 0:00:19.5]} 22. Rf1 {[%clk 0:00:20.2]} 22... Qg5 {[%clk 0:00:15.2]} 23. Rxf8+ {[%clk 0:00:17.2]} 23... Kxf8 {[%clk 0:00:14.9]} 24. c4 {[%clk 0:00:15.7]} 24... dxc4 {[%clk 0:00:10.8]} 25. Nxc4 {[%clk 0:00:13.9]} 25... Qf4 {[%clk 0:00:08.7]} 26. e6 {[%clk 0:00:01.7]} 26... Nxc4 {[%clk 0:00:07]} 27. Qxc4 {[%clk 0:00:00.6]} 27... e3 {[%clk 0:00:05.6]} 0-1

[Event "Live Chess"]
[Site "Chess.com"]
[Date "2010.12.14"]
[Round "-"]
[White "hipposcottimus"]
[Black "realproto"]
[Result "0-1"]
[CurrentPosition "r1b2rk1/pp1p3p/4p1p1/1B2P1N1/1n2Q3/2N5/PPn2qPP/2R2K1R w - -"]
[Timezone "UTC"]
[ECO "C00"]
[ECOUrl "https://www.chess.com/openings/French-Defense-Normal-Variation"]
[UTCDate "2010.12.14"]
[UTCTime "09:40:24"]
[WhiteElo "1642"]
[BlackElo "1602"]
[TimeControl "60"]
[Termination "realproto won by checkmate"]
[StartTime "09:40:24"]
[EndDate "2010.12.14"]
[EndTime "09:41:36"]
[Link "https://www.chess.com/game/live/77157930"]

1. e4 {[%clk 0:01:00]} 1... e6 {[%clk 0:01:00]} 2. d4 {[%clk 0:00:57.9]} 2... Bb4+ {[%clk 0:00:58.9]} 3. Bd2 {[%clk 0:00:55.4]} 3... c5 {[%clk 0:00:56.9]} 4. Bxb4 {[%clk 0:00:54.1]} 4... cxb4 {[%clk 0:00:55.8]} 5. c3 {[%clk 0:00:53.9]} 5... bxc3 {[%clk 0:00:54.1]} 6. Nxc3 {[%clk 0:00:53.6]} 6... Ne7 {[%clk 0:00:53.8]} 7. Bb5 {[%clk 0:00:52.8]} 7... Nbc6 {[%clk 0:00:52.6]} 8. Nf3 {[%clk 0:00:49]} 8... O-O {[%clk 0:00:51]} 9. e5 {[%clk 0:00:47.4]} 9... Nd5 {[%clk 0:00:44.5]} 10. Qc2 {[%clk 0:00:46.3]} 10... Ndb4 {[%clk 0:00:42.6]} 11. Qe4 {[%clk 0:00:43.3]} 11... Qb6 {[%clk 0:00:39.1]} 12. Ng5 {[%clk 0:00:41]} 12... g6 {[%clk 0:00:37]} 13. d5 {[%clk 0:00:35.8]} 13... Nd4 {[%clk 0:00:35.3]} 14. dxe6 {[%clk 0:00:32.3]} 14... Ndc2+ {[%clk 0:00:34]} 15. Kf1 {[%clk 0:00:30.7]} 15... fxe6 {[%clk 0:00:31.9]} 16. Rc1 {[%clk 0:00:27.2]} 16... Qxf2# {[%clk 0:00:29.1]} 0-1

[Event "Live Chess"]
[Site "Chess.com"]
[Date "2010.12.14"]
[Round "-"]
[White "realproto"]
[Black "hipposcottimus"]
[Result "1-0"]
[CurrentPosition "k2r3r/ppQP1p1p/8/8/3qb1p1/1P2BpP1/P4K1P/2R2B2 b - -"]
[Timezone "UTC"]
[ECO "A00"]
[ECOUrl "https://www.chess.com/openings/Saragossa-Opening-Hanham-Variation-Hayward-Variation"]
[UTCDate "2010.12.14"]
[UTCTime "09:38:00"]
[WhiteElo "1593"]
[BlackElo "1651"]
[TimeControl "60"]
[Termination "realproto won on time"]
[StartTime "09:38:00"]
[EndDate "2010.12.14"]
[EndTime "09:40:09"]
[Link "https://www.chess.com/game/live/77157429"]

1. c3 {[%clk 0:01:00]} 1... e5 {[%clk 0:01:00]} 2. Qc2 {[%clk 0:01:00]} 2... d5 {[%clk 0:00:56.1]} 3. e3 {[%clk 0:01:00]} 3... Ne7 {[%clk 0:00:53.8]} 4. Nf3 {[%clk 0:00:59.2]} 4... Bf5 {[%clk 0:00:52.5]} 5. d3 {[%clk 0:00:57]} 5... e4 {[%clk 0:00:51.9]} 6. Nd4 {[%clk 0:00:55.6]} 6... Bg6 {[%clk 0:00:47.9]} 7. Be2 {[%clk 0:00:52.2]} 7... Qd7 {[%clk 0:00:46.5]} 8. O-O {[%clk 0:00:49.6]} 8... Nbc6 {[%clk 0:00:45]} 9. Nxc6 {[%clk 0:00:46.3]} 9... Qxc6 {[%clk 0:00:44.6]} 10. d4 {[%clk 0:00:46]} 10... O-O-O {[%clk 0:00:43.1]} 11. Nd2 {[%clk 0:00:46]} 11... Qf6 {[%clk 0:00:41.5]} 12. b3 {[%clk 0:00:46]} 12... Nf5 {[%clk 0:00:38.5]} 13. Bb2 {[%clk 0:00:44]} 13... Nh4 {[%clk 0:00:37.2]} 14. c4 {[%clk 0:00:42.6]} 14... Qg5 {[%clk 0:00:36.1]} 15. g3 {[%clk 0:00:41.3]} 15... Nf3+ {[%clk 0:00:34]} 16. Nxf3 {[%clk 0:00:39.1]} 16... exf3 {[%clk 0:00:33.6]} 17. Bd3 {[%clk 0:00:37.3]} 17... Bh5 {[%clk 0:00:29.4]} 18. Bf5+ {[%clk 0:00:35.2]} 18... Kb8 {[%clk 0:00:26.8]} 19. e4 {[%clk 0:00:31]} 19... g6 {[%clk 0:00:24.9]} 20. Bc1 {[%clk 0:00:28]} 20... Qf6 {[%clk 0:00:18.9]} 21. Bh3 {[%clk 0:00:25.9]} 21... g5 {[%clk 0:00:16.9]} 22. Re1 {[%clk 0:00:23.2]} 22... g4 {[%clk 0:00:15.2]} 23. Bf1 {[%clk 0:00:22.3]} 23... Bg6 {[%clk 0:00:13.2]} 24. cxd5 {[%clk 0:00:20.3]} 24... Qg7 {[%clk 0:00:12.7]} 25. Bf4 {[%clk 0:00:17.8]} 25... Bb4 {[%clk 0:00:11.4]} 26. Qxc7+ {[%clk 0:00:16.1]} 26... Ka8 {[%clk 0:00:11]} 27. d6 {[%clk 0:00:12]} 27... Bxe1 {[%clk 0:00:09.1]} 28. d7 {[%clk 0:00:10]} 28... Bxf2+ {[%clk 0:00:06.4]} 29. Kxf2 {[%clk 0:00:08]} 29... Bxe4 {[%clk 0:00:04.2]} 30. Rc1 {[%clk 0:00:05.3]} 30... Qxd4+ {[%clk 0:00:03.1]} 31. Be3 {[%clk 0:00:03.6]} 1-0

[Event "Live Chess"]
[Site "Chess.com"]
[Date "2010.12.14"]
[Round "-"]
[White "hipposcottimus"]
[Black "realproto"]
[Result "1-0"]
[CurrentPosition "3r4/1p1N1kb1/p1p4p/4p3/6Q1/4q3/PP4PP/5R1K b - -"]
[Timezone "UTC"]
[ECO "A40"]
[ECOUrl "https://www.chess.com/openings/Modern-Defense-with-1-d4-2.c4-Bg7-3.e4"]
[UTCDate "2010.12.14"]
[UTCTime "09:35:23"]
[WhiteElo "1660"]
[BlackElo "1582"]
[TimeControl "60"]
[Termination "hipposcottimus won on time"]
[StartTime "09:35:23"]
[EndDate "2010.12.14"]
[EndTime "09:37:34"]
[Link "https://www.chess.com/game/live/77156935"]

1. e4 {[%clk 0:01:00]} 1... g6 {[%clk 0:01:00]} 2. d4 {[%clk 0:00:57.5]} 2... Bg7 {[%clk 0:01:00]} 3. c4 {[%clk 0:00:56.6]} 3... e6 {[%clk 0:01:00]} 4. Nc3 {[%clk 0:00:54.8]} 4... Ne7 {[%clk 0:01:00]} 5. e5 {[%clk 0:00:54]} 5... O-O {[%clk 0:01:00]} 6. f4 {[%clk 0:00:52.8]} 6... d6 {[%clk 0:01:00]} 7. Nf3 {[%clk 0:00:52.3]} 7... c6 {[%clk 0:00:58]} 8. Be3 {[%clk 0:00:49.7]} 8... Qb6 {[%clk 0:00:55.5]} 9. Qd2 {[%clk 0:00:46]} 9... d5 {[%clk 0:00:49.6]} 10. Be2 {[%clk 0:00:44.7]} 10... Nd7 {[%clk 0:00:47]} 11. O-O {[%clk 0:00:43]} 11... dxc4 {[%clk 0:00:45]} 12. Bxc4 {[%clk 0:00:41.5]} 12... Nd5 {[%clk 0:00:43.9]} 13. Bb3 {[%clk 0:00:41]} 13... Nxe3 {[%clk 0:00:42.5]} 14. Qxe3 {[%clk 0:00:40.7]} 14... a6 {[%clk 0:00:39.6]} 15. Qf2 {[%clk 0:00:40.2]} 15... Qa7 {[%clk 0:00:38]} 16. Qg3 {[%clk 0:00:39]} 16... Nb6 {[%clk 0:00:35.4]} 17. Qh3 {[%clk 0:00:37.3]} 17... Bd7 {[%clk 0:00:33.3]} 18. Ng5 {[%clk 0:00:36.2]} 18... h6 {[%clk 0:00:31.8]} 19. Nf3 {[%clk 0:00:34.7]} 19... Rad8 {[%clk 0:00:30]} 20. Bc2 {[%clk 0:00:34]} 20... Nc4 {[%clk 0:00:28.5]} 21. f5 {[%clk 0:00:32.1]} 21... Ne3 {[%clk 0:00:26.9]} 22. fxg6 {[%clk 0:00:28.3]} 22... Nxc2 {[%clk 0:00:24.1]} 23. gxf7+ {[%clk 0:00:26.9]} 23... Rxf7 {[%clk 0:00:22.6]} 24. Rac1 {[%clk 0:00:24]} 24... Nxd4 {[%clk 0:00:19.2]} 25. Kh1 {[%clk 0:00:20.2]} 25... Nxf3 {[%clk 0:00:14.2]} 26. Rxf3 {[%clk 0:00:19.9]} 26... Rxf3 {[%clk 0:00:11.1]} 27. Qxf3 {[%clk 0:00:19.5]} 27... Bxe5 {[%clk 0:00:09.2]} 28. Qg4+ {[%clk 0:00:17]} 28... Bg7 {[%clk 0:00:07.6]} 29. Ne4 {[%clk 0:00:14.5]} 29... e5 {[%clk 0:00:06.7]} 30. Nf6+ {[%clk 0:00:13.3]} 30... Kf7 {[%clk 0:00:02.9]} 31. Nxd7 {[%clk 0:00:07]} 31... Qe3 {[%clk 0:00:00.3]} 32. Rf1+ {[%clk 0:00:05]} 1-0

[Event "Live Chess"]
[Site "Chess.com"]
[Date "2010.12.14"]
[Round "-"]
[White "realproto"]
[Black "hipposcottimus"]
[Result "0-1"]
[CurrentPosition "2r3k1/p2r1ppp/8/1N1n4/8/B1p1P3/PPB2PPP/R5K1 w - -"]
[Timezone "UTC"]
[ECO "A04"]
[ECOUrl "https://www.chess.com/openings/Reti-Opening-Ross-Gambit"]
[UTCDate "2010.12.14"]
[UTCTime "09:33:10"]
[WhiteElo "1589"]
[BlackElo "1653"]
[TimeControl "60"]
[Termination "hipposcottimus won on time"]
[StartTime "09:33:10"]
[EndDate "2010.12.14"]
[EndTime "09:34:56"]
[Link "https://www.chess.com/game/live/77156482"]

1. Nf3 {[%clk 0:01:00]} 1... e5 {[%clk 0:01:00]} 2. e3 {[%clk 0:01:00]} 2... d6 {[%clk 0:00:59.5]} 3. Be2 {[%clk 0:00:58.5]} 3... e4 {[%clk 0:00:59.1]} 4. Nd4 {[%clk 0:00:57]} 4... c5 {[%clk 0:00:56.9]} 5. Nb3 {[%clk 0:00:55.9]} 5... Nf6 {[%clk 0:00:49.7]} 6. c4 {[%clk 0:00:54.9]} 6... d5 {[%clk 0:00:47.9]} 7. O-O {[%clk 0:00:51.4]} 7... dxc4 {[%clk 0:00:46.2]} 8. Bxc4 {[%clk 0:00:49.7]} 8... Nc6 {[%clk 0:00:46]} 9. Nc3 {[%clk 0:00:44.1]} 9... Be7 {[%clk 0:00:44.9]} 10. Qc2 {[%clk 0:00:39.9]} 10... Bf5 {[%clk 0:00:43.2]} 11. Rd1 {[%clk 0:00:32.9]} 11... O-O {[%clk 0:00:40.7]} 12. d4 {[%clk 0:00:29.1]} 12... exd3 {[%clk 0:00:38.5]} 13. Bxd3 {[%clk 0:00:28.2]} 13... Nb4 {[%clk 0:00:34.9]} 14. Bxf5 {[%clk 0:00:21.7]} 14... Nxc2 {[%clk 0:00:34.2]} 15. Rxd8 {[%clk 0:00:20.3]} 15... Raxd8 {[%clk 0:00:33.9]} 16. Bxc2 {[%clk 0:00:19.2]} 16... c4 {[%clk 0:00:30.3]} 17. Nd4 {[%clk 0:00:17.2]} 17... Bb4 {[%clk 0:00:29.8]} 18. Bd2 {[%clk 0:00:15.9]} 18... Bxc3 {[%clk 0:00:28.9]} 19. Bxc3 {[%clk 0:00:15.2]} 19... b5 {[%clk 0:00:28.6]} 20. Nxb5 {[%clk 0:00:13.4]} 20... Nd5 {[%clk 0:00:28]} 21. Bd4 {[%clk 0:00:08.5]} 21... Rd7 {[%clk 0:00:26.6]} 22. Bc5 {[%clk 0:00:06.9]} 22... Rc8 {[%clk 0:00:23.6]} 23. Ba3 {[%clk 0:00:03.8]} 23... c3 {[%clk 0:00:22.2]} 0-1

[Event "Live Chess"]
[Site "Chess.com"]
[Date "2010.12.14"]
[Round "-"]
[White "hipposcottimus"]
[Black "DimitrisC"]
[Result "1-0"]
[CurrentPosition "6k1/p5p1/2p5/2P5/3r4/3q4/1K3p2/8 b - -"]
[Timezone "UTC"]
[ECO "B07"]
[ECOUrl "https://www.chess.com/openings/Lion-Defense-4.Nf3"]
[UTCDate "2010.12.14"]
[UTCTime "09:30:14"]
[WhiteElo "1646"]
[BlackElo "1407"]
[TimeControl "60"]
[Termination "hipposcottimus won on time"]
[StartTime "09:30:14"]
[EndDate "2010.12.14"]
[EndTime "09:32:34"]
[Link "https://www.chess.com/game/live/77155857"]

1. e4 {[%clk 0:01:00]} 1... d6 {[%clk 0:01:00]} 2. d4 {[%clk 0:00:58.9]} 2... Nf6 {[%clk 0:00:59.4]} 3. Nc3 {[%clk 0:00:54.9]} 3... Nbd7 {[%clk 0:00:58.9]} 4. Nf3 {[%clk 0:00:52.3]} 4... e5 {[%clk 0:00:58.9]} 5. dxe5 {[%clk 0:00:49.9]} 5... Nxe5 {[%clk 0:00:58.9]} 6. Nd5 {[%clk 0:00:49.3]} 6... c6 {[%clk 0:00:55.2]} 7. Nxe5 {[%clk 0:00:45.5]} 7... dxe5 {[%clk 0:00:49.8]} 8. Ne3 {[%clk 0:00:41.4]} 8... Qxd1+ {[%clk 0:00:47.5]} 9. Kxd1 {[%clk 0:00:40.3]} 9... Nxe4 {[%clk 0:00:46.9]} 10. f3 {[%clk 0:00:39.9]} 10... Nf2+ {[%clk 0:00:45.2]} 11. Ke2 {[%clk 0:00:39.6]} 11... Nxh1 {[%clk 0:00:45.2]} 12. Bd2 {[%clk 0:00:39.3]} 12... Bc5 {[%clk 0:00:42.9]} 13. Ng4 {[%clk 0:00:36.2]} 13... Bxg4 {[%clk 0:00:36.9]} 14. fxg4 {[%clk 0:00:33.7]} 14... Nf2 {[%clk 0:00:35.4]} 15. Be3 {[%clk 0:00:33.2]} 15... Bxe3 {[%clk 0:00:33.7]} 16. Kxe3 {[%clk 0:00:32.9]} 16... Nxg4+ {[%clk 0:00:33]} 17. Ke2 {[%clk 0:00:31.5]} 17... Nxh2 {[%clk 0:00:32.2]} 18. Ke1 {[%clk 0:00:30.7]} 18... Nxf1 {[%clk 0:00:31.4]} 19. Kxf1 {[%clk 0:00:30.4]} 19... O-O {[%clk 0:00:29.8]} 20. Ke2 {[%clk 0:00:30]} 20... e4 {[%clk 0:00:28.6]} 21. Rh1 {[%clk 0:00:29.7]} 21... f5 {[%clk 0:00:27.2]} 22. c3 {[%clk 0:00:29.4]} 22... f4 {[%clk 0:00:26.1]} 23. c4 {[%clk 0:00:28.1]} 23... f3+ {[%clk 0:00:25.2]} 24. gxf3 {[%clk 0:00:27.7]} 24... exf3+ {[%clk 0:00:24.3]} 25. Kf2 {[%clk 0:00:27.4]} 25... Rae8 {[%clk 0:00:23.4]} 26. b4 {[%clk 0:00:26.2]} 26... Re2+ {[%clk 0:00:22.6]} 27. Kg3 {[%clk 0:00:24.9]} 27... f2 {[%clk 0:00:21.4]} 28. Rf1 {[%clk 0:00:24]} 28... Rxa2 {[%clk 0:00:18.8]} 29. Kg2 {[%clk 0:00:20.9]} 29... h5 {[%clk 0:00:17.4]} 30. Kh2 {[%clk 0:00:19.7]} 30... h4 {[%clk 0:00:16.6]} 31. Kg2 {[%clk 0:00:19.4]} 31... Re2 {[%clk 0:00:15]} 32. Kh2 {[%clk 0:00:18.9]} 32... Re1 {[%clk 0:00:14]} 33. Kg2 {[%clk 0:00:18.3]} 33... Rxf1 {[%clk 0:00:13.1]} 34. Kxf1 {[%clk 0:00:18]} 34... h3 {[%clk 0:00:12.6]} 35. b5 {[%clk 0:00:16.9]} 35... h2 {[%clk 0:00:11.9]} 36. bxc6 {[%clk 0:00:16.2]} 36... bxc6 {[%clk 0:00:10.1]} 37. Ke2 {[%clk 0:00:15.8]} 37... h1=Q {[%clk 0:00:07.6]} 38. Kd3 {[%clk 0:00:15.5]} 38... Qd1+ {[%clk 0:00:06.5]} 39. Kc3 {[%clk 0:00:14.9]} 39... Rb8 {[%clk 0:00:05.6]} 40. c5 {[%clk 0:00:12.2]} 40... Qe2 {[%clk 0:00:04.2]} 41. Kd4 {[%clk 0:00:09.3]} 41... Rd8+ {[%clk 0:00:04.2]} 42. Kc3 {[%clk 0:00:07.9]} 42... Qd1 {[%clk 0:00:03]} 43. Kc4 {[%clk 0:00:07]} 43... Rd4+ {[%clk 0:00:02.7]} 44. Kc3 {[%clk 0:00:05.2]} 44... Qf3+ {[%clk 0:00:01.7]} 45. Kc2 {[%clk 0:00:03]} 45... Qd3+ {[%clk 0:00:00.9]} 46. Kb2 {[%clk 0:00:02]} 1-0

[Event "Live Chess"]
[Site "Chess.com"]
[Date "2010.12.14"]
[Round "-"]
[White "DimitrisC"]
[Black "hipposcottimus"]
[Result "0-1"]
[CurrentPosition "4r1k1/5pp1/8/p2bP2p/1p1P4/1n2B1Pq/1P2PQ1P/5RK1 w - -"]
[Timezone "UTC"]
[ECO "A20"]
[ECOUrl "https://www.chess.com/openings/English-Opening-Kings-English-Double-Whammy-Variation"]
[UTCDate "2010.12.14"]
[UTCTime "09:27:31"]
[WhiteElo "1407"]
[BlackElo "1646"]
[TimeControl "60"]
[Termination "hipposcottimus won on time"]
[StartTime "09:27:31"]
[EndDate "2010.12.14"]
[EndTime "09:29:31"]
[Link "https://www.chess.com/game/live/77155420"]

1. c4 {[%clk 0:01:00]} 1... e5 {[%clk 0:01:00]} 2. f4 {[%clk 0:00:58.7]} 2... e4 {[%clk 0:00:58.2]} 3. Nc3 {[%clk 0:00:54.2]} 3... Nf6 {[%clk 0:00:57.8]} 4. g3 {[%clk 0:00:50.7]} 4... d5 {[%clk 0:00:57.4]} 5. Bg2 {[%clk 0:00:48.9]} 5... dxc4 {[%clk 0:00:54.2]} 6. Nxe4 {[%clk 0:00:47]} 6... Be7 {[%clk 0:00:51.9]} 7. Qa4+ {[%clk 0:00:42.9]} 7... Bd7 {[%clk 0:00:50.4]} 8. Qxc4 {[%clk 0:00:41.8]} 8... O-O {[%clk 0:00:48.2]} 9. Nf3 {[%clk 0:00:39.9]} 9... b5 {[%clk 0:00:47.8]} 10. Qd3 {[%clk 0:00:38.2]} 10... Nc6 {[%clk 0:00:47.5]} 11. Nxf6+ {[%clk 0:00:36.8]} 11... Bxf6 {[%clk 0:00:45.7]} 12. O-O {[%clk 0:00:34.8]} 12... Nb4 {[%clk 0:00:44.8]} 13. Qb3 {[%clk 0:00:31.1]} 13... a5 {[%clk 0:00:42.1]} 14. a3 {[%clk 0:00:28.2]} 14... Be6 {[%clk 0:00:39.2]} 15. Qe3 {[%clk 0:00:25.1]} 15... Nc2 {[%clk 0:00:33.4]} 16. Qd3 {[%clk 0:00:19.7]} 16... Nxa1 {[%clk 0:00:32.3]} 17. Qb1 {[%clk 0:00:14.3]} 17... Nb3 {[%clk 0:00:30.8]} 18. d3 {[%clk 0:00:11]} 18... c5 {[%clk 0:00:30.3]} 19. Bd2 {[%clk 0:00:08.5]} 19... b4 {[%clk 0:00:26.5]} 20. axb4 {[%clk 0:00:05.4]} 20... cxb4 {[%clk 0:00:26.2]} 21. Be3 {[%clk 0:00:04.6]} 21... h5 {[%clk 0:00:20.7]} 22. Ne5 {[%clk 0:00:04.6]} 22... Bxe5 {[%clk 0:00:19.1]} 23. fxe5 {[%clk 0:00:04.6]} 23... Qd7 {[%clk 0:00:17.2]} 24. Bxa8 {[%clk 0:00:04.1]} 24... Rxa8 {[%clk 0:00:15.5]} 25. d4 {[%clk 0:00:03.6]} 25... Re8 {[%clk 0:00:14.1]} 26. Qe1 {[%clk 0:00:02.6]} 26... Bd5 {[%clk 0:00:13.4]} 27. Qf2 {[%clk 0:00:01.5]} 27... Qh3 {[%clk 0:00:12.1]} 0-1

[Event "Live Chess"]
[Site "Chess.com"]
[Date "2010.12.14"]
[Round "-"]
[White "hipposcottimus"]
[Black "samyaaaa"]
[Result "0-1"]
[CurrentPosition "2k5/5rp1/2p5/7p/1Pp2rbP/8/PP3K2/R3R3 w - -"]
[Timezone "UTC"]
[ECO "C57"]
[ECOUrl "https://www.chess.com/openings/Italian-Game-Knight-Attack-Fritz-Variation-6.c3-b5"]
[UTCDate "2010.12.14"]
[UTCTime "09:24:39"]
[WhiteElo "1646"]
[BlackElo "1647"]
[TimeControl "60"]
[Termination "samyaaaa won on time"]
[StartTime "09:24:39"]
[EndDate "2010.12.14"]
[EndTime "09:26:50"]
[Link "https://www.chess.com/game/live/77154901"]

1. e4 {[%clk 0:01:00]} 1... e5 {[%clk 0:01:00]} 2. Nf3 {[%clk 0:00:59.7]} 2... Nc6 {[%clk 0:00:59.3]} 3. Bc4 {[%clk 0:00:59.1]} 3... Nf6 {[%clk 0:00:57.8]} 4. Ng5 {[%clk 0:00:58.4]} 4... d5 {[%clk 0:00:56.6]} 5. exd5 {[%clk 0:00:58.1]} 5... Nd4 {[%clk 0:00:56]} 6. c3 {[%clk 0:00:55.6]} 6... b5 {[%clk 0:00:54.1]} 7. cxd4 {[%clk 0:00:54.4]} 7... bxc4 {[%clk 0:00:52.9]} 8. dxe5 {[%clk 0:00:54.1]} 8... Nxd5 {[%clk 0:00:50.8]} 9. Nc3 {[%clk 0:00:51.7]} 9... Nxc3 {[%clk 0:00:48.5]} 10. dxc3 {[%clk 0:00:51.4]} 10... Qxd1+ {[%clk 0:00:45.3]} 11. Kxd1 {[%clk 0:00:51.1]} 11... Be7 {[%clk 0:00:44]} 12. Nf3 {[%clk 0:00:49.2]} 12... Bg4 {[%clk 0:00:42.3]} 13. Ke2 {[%clk 0:00:47.2]} 13... O-O-O {[%clk 0:00:40.9]} 14. Re1 {[%clk 0:00:43.6]} 14... Rhe8 {[%clk 0:00:38.6]} 15. Be3 {[%clk 0:00:38.4]} 15... f6 {[%clk 0:00:36.3]} 16. Bxa7 {[%clk 0:00:36.8]} 16... fxe5 {[%clk 0:00:34.5]} 17. Be3 {[%clk 0:00:34.2]} 17... e4 {[%clk 0:00:32.6]} 18. h3 {[%clk 0:00:32.9]} 18... exf3+ {[%clk 0:00:31.4]} 19. gxf3 {[%clk 0:00:32.4]} 19... Bh5 {[%clk 0:00:30.3]} 20. Kf1 {[%clk 0:00:30.8]} 20... Bf6 {[%clk 0:00:29]} 21. Kg2 {[%clk 0:00:29.8]} 21... Bg6 {[%clk 0:00:27.6]} 22. Rh1 {[%clk 0:00:22.8]} 22... Bd3 {[%clk 0:00:26.4]} 23. h4 {[%clk 0:00:21.7]} 23... h5 {[%clk 0:00:25.5]} 24. Kh3 {[%clk 0:00:19.6]} 24... c6 {[%clk 0:00:24.6]} 25. f4 {[%clk 0:00:18.5]} 25... Bf5+ {[%clk 0:00:22.2]} 26. Kg3 {[%clk 0:00:17.1]} 26... Be4 {[%clk 0:00:20.8]} 27. Rhg1 {[%clk 0:00:16.4]} 27... Bd3 {[%clk 0:00:19.5]} 28. Bb6 {[%clk 0:00:15.3]} 28... Rd7 {[%clk 0:00:17.6]} 29. Ba5 {[%clk 0:00:12.9]} 29... Rf7 {[%clk 0:00:16.4]} 30. Bb4 {[%clk 0:00:11.9]} 30... Be7 {[%clk 0:00:15.3]} 31. Kf3 {[%clk 0:00:10.6]} 31... Bxb4 {[%clk 0:00:13.6]} 32. cxb4 {[%clk 0:00:08.9]} 32... Be2+ {[%clk 0:00:12.4]} 33. Kg2 {[%clk 0:00:06.3]} 33... Re4 {[%clk 0:00:11.3]} 34. f3 {[%clk 0:00:04.6]} 34... Rexf4 {[%clk 0:00:10]} 35. Rge1 {[%clk 0:00:01.7]} 35... Bxf3+ {[%clk 0:00:08.8]} 36. Kf2 {[%clk 0:00:00.7]} 36... Bg4+ {[%clk 0:00:07]} 0-1

[Event "Live Chess"]
[Site "Chess.com"]
[Date "2010.12.14"]
[Round "-"]
[White "hipposcottimus"]
[Black "keizer-inactive"]
[Result "1-0"]
[CurrentPosition "rk5r/pp1Q2pp/3B4/4N3/3P4/8/P1P2PPP/R2R2K1 b - -"]
[Timezone "UTC"]
[ECO "B01"]
[ECOUrl "https://www.chess.com/openings/Scandinavian-Defense-Mieses-Kotrc-Variation-3.Nc3"]
[UTCDate "2010.12.14"]
[UTCTime "09:22:25"]
[WhiteElo "1654"]
[BlackElo "1357"]
[TimeControl "60"]
[Termination "hipposcottimus won by checkmate"]
[StartTime "09:22:25"]
[EndDate "2010.12.14"]
[EndTime "09:24:07"]
[Link "https://www.chess.com/game/live/77154372"]

1. e4 {[%clk 0:01:00]} 1... d5 {[%clk 0:01:00]} 2. exd5 {[%clk 0:00:57.4]} 2... Qxd5 {[%clk 0:00:58.6]} 3. Nc3 {[%clk 0:00:57.2]} 3... Qe6+ {[%clk 0:00:57.9]} 4. Be2 {[%clk 0:00:56.6]} 4... Qd7 {[%clk 0:00:56.1]} 5. d4 {[%clk 0:00:53.1]} 5... Qd8 {[%clk 0:00:39.5]} 6. Nf3 {[%clk 0:00:52.7]} 6... e6 {[%clk 0:00:38.6]} 7. O-O {[%clk 0:00:51.9]} 7... Bb4 {[%clk 0:00:36.8]} 8. Ne5 {[%clk 0:00:50.4]} 8... Qd5 {[%clk 0:00:34.4]} 9. Bf3 {[%clk 0:00:43]} 9... c5 {[%clk 0:00:33.2]} 10. Bxd5 {[%clk 0:00:41]} 10... Bxc3 {[%clk 0:00:31.5]} 11. bxc3 {[%clk 0:00:37.6]} 11... cxd4 {[%clk 0:00:30.7]} 12. Bb3 {[%clk 0:00:35.7]} 12... Ne7 {[%clk 0:00:30.4]} 13. cxd4 {[%clk 0:00:34.3]} 13... Bd7 {[%clk 0:00:27.9]} 14. Qf3 {[%clk 0:00:33.8]} 14... Bb5 {[%clk 0:00:22.6]} 15. Qxf7+ {[%clk 0:00:30.3]} 15... Kd8 {[%clk 0:00:22.1]} 16. Rd1 {[%clk 0:00:29.4]} 16... Re8 {[%clk 0:00:18.4]} 17. Bxe6 {[%clk 0:00:27.4]} 17... Nd7 {[%clk 0:00:16.3]} 18. Bxd7 {[%clk 0:00:26.5]} 18... Rh8 {[%clk 0:00:11.4]} 19. Ba3 {[%clk 0:00:24.5]} 19... Bxd7 {[%clk 0:00:10.3]} 20. Qxe7+ {[%clk 0:00:22.8]} 20... Kc8 {[%clk 0:00:09.2]} 21. Qxd7+ {[%clk 0:00:22.2]} 21... Kb8 {[%clk 0:00:07.2]} 22. Bd6# {[%clk 0:00:21.8]} 1-0